bitfinex-derivatives/quotes_ETHF0:USTF0_20251008
["timestamp","ask_amount","ask_price","bid_price","bid_amount"]
[1759931379788,3.2078,4464.7,4464.6,0.6642]
[1759931382688,3.2078,4465.3,4465.1,0.685]
[1759931382886,3.2078,4465.3,4465.2,5.89341147]
[1759931383793,3.2078,4465.3,4465.2,10.89341147]
[1759931384792,3.2078,4465.3,4465.2,5.89341147]
[1759931385794,3.2078,4465.3,4465.2,46.69341147]
[1759931385982,3.2078,4465.3,4465.2,48.29833063]
[1759931386388,0.00159263,4465.6,4465.3,0.40298]
[1759931386593,0.00159263,4465.6,4465.5,0.9564]
[1759931387393,0.00159263,4465.6,4465.5,1.35936]
[1759931388392,0.00159263,4465.6,4465.5,6.53483649]
[1759931388786,3.2078,4466.8,4466.6,0.685]
[1759931388986,1.02888,4467.9,4466.5,0.2714]
[1759931388987,3.2078,4467.3,4467.0,0.2714]
[1759931389192,3.2078,4467.3,4467.2,5.66341147]
[1759931389696,3.21055823,4467.3,4467.2,46.46521488]
[1759931390394,3.21055823,4467.3,4467.2,46.69521488]
[1759931390597,3.21055823,4467.3,4467.2,41.48680341]
[1759931390793,3.21055823,4467.3,4467.2,41.71680341]
[1759931391192,3.21055823,4467.3,4467.2,0.91680341]
[1759931391494,3.21055823,4467.3,4467.2,0.68680341]
[1759931391690,3.21055823,4467.3,4467.2,0.91680341]
[1759931392398,3.21055823,4467.3,4467.2,0.68680341]
[1759931392690,3.21055823,4467.3,4467.2,0.91680341]
[1759931393092,3.21055823,4467.3,4467.2,0.68680341]
[1759931393093,0.00275823,4467.3,4467.2,0.68680341]
[1759931393402,3.21055823,4467.3,4467.2,0.68680341]
[1759931393593,3.21055823,4467.3,4467.2,0.91680341]
[1759931394094,3.21055823,4467.3,4467.2,0.68680341]
[1759931394295,3.21055823,4467.3,4467.2,0.91680341]
[1759931394495,3.21055823,4467.3,4467.2,3.41e-06]
[1759931394702,0.40281,4467.2,4467.0,0.2714]
[1759931394902,0.40285,4466.8,4466.7,0.685]
[1759931395091,0.40287,4466.6,4466.2,0.685]
[1759931395399,0.40291,4466.2,4466.0,0.2714]
[1759931395591,3.2078,4466.1,4466.0,0.27381608]
[1759931395792,0.40295,4465.7,4465.1,0.403]
[1759931395988,3.2078,4465.6,4465.5,0.9564]
[1759931396197,3.2078,4465.6,4465.5,1.1864]
[1759931396393,3.2078,4465.6,4465.5,0.9564]
[1759931396703,3.2078,4465.6,4465.5,1.18910277]
[1759931397389,3.2078,4465.6,4465.5,0.95910277]
[1759931397598,3.2078,4465.6,4465.5,0.50410277]
[1759931397799,3.2078,4465.6,4465.5,1.18910277]
[1759931399098,3.2078,4465.6,4465.5,0.95910277]
[1759931399395,3.2078,4465.6,4465.5,1.18910277]
[1759931399590,3.2078,4465.6,4465.5,0.27410277]
[1759931399796,0.403,4465.1,4465.0,0.2714]
[1759931399994,3.6108,4465.1,4465.0,0.5014]
[1759931400195,3.2078,4465.1,4465.0,1.1864]
[1759931400399,0.00275823,4467.3,4465.5,1.35936]
[1759931400400,3.2078,4465.6,4465.5,1.35936]
[1759931400603,3.2078,4465.6,4465.5,1.58936]
[1759931400803,3.2078,4465.6,4465.5,1.18858945]
[1759931401097,3.2078,4465.6,4465.5,0.95858945]
[1759931401298,3.2078,4465.6,4465.5,1.18858945]
[1759931402802,0.40299,4465.2,4465.0,0.2714]
[1759931403099,1.00737,4465.7,4464.6,0.685]
[1759931403100,3.2078,4465.1,4464.6,0.685]
[1759931403306,3.2078,4465.1,4465.0,0.9564]
[1759931403811,3.2078,4465.1,4465.0,1.18831166]
[1759931403998,3.2078,4465.1,4465.0,0.50331166]
[1759931404198,3.2078,4465.1,4465.0,0.27331166]
[1759931404402,3.2078,4465.1,4464.5,0.2714]
[1759931404403,0.40305,4464.6,4464.5,0.2714]
[1759931404601,3.61085,4464.6,4464.5,1.1864]
[1759931405197,3.61085,4464.6,4464.5,0.9564]
[1759931405405,3.2078,4464.6,4464.5,1.18855955]
[1759931405601,3.61085,4464.6,4464.5,0.95855955]
[1759931405806,3.61085,4464.6,4464.5,1.18855955]
[1759931406201,0.40309,4464.1,4464.0,0.2714]
[1759931406406,3.61089,4464.1,4464.0,0.2714]
[1759931406607,3.2078,4464.1,4464.0,0.9564]
[1759931406905,3.2078,4464.6,4464.0,0.2714]
[1759931407110,3.2078,4464.6,4464.5,0.9564]
[1759931407308,3.21017362,4464.6,4464.5,1.18853345]
[1759931407600,0.40308,4464.2,4464.0,0.2714]
[1759931407803,8.21017362,4464.6,4464.0,0.2714]
[1759931407804,3.21017362,4464.6,4464.1,0.23]
[1759931408003,3.21017362,4464.6,4464.5,0.9564]
[1759931408508,3.21017362,4464.6,4464.5,1.18930067]
[1759931409216,3.2078,4465.1,4465.0,1.31641]
[1759931409406,3.2078,4465.1,4465.0,5.8730423]
[1759931409809,3.2078,4465.6,4465.5,0.9134]
[1759931410010,3.2078,4465.6,4465.5,1.1434]
[1759931410210,3.21001073,4465.6,4465.5,1.1434]
[1759931410507,3.2078,4466.1,4466.0,1.31632]
[1759931410704,3.2078,4466.1,4466.0,5.8729523]
[1759931411007,3.2078,4466.6,4466.5,1.31627]
[1759931411313,0.022,4467.9,4467.0,0.40283]
[1759931411498,3.2078,4467.3,4467.2,4.9795323]
[1759931411701,3.2078,4467.8,4467.5,0.2605]
[1759931411898,3.2078,4467.8,4467.7,0.6529]
[1759931412104,3.2078,4467.8,4467.7,0.65502551]
[1759931413908,0.40282,4467.1,4467.0,0.2605]
[1759931414606,3.6106,4467.3,4467.0,0.2605]
[1759931414912,0.40282,4467.2,4467.0,0.26264077]
[1759931415605,0.40282,4467.2,4465.4,0.6529]
[1759931415606,0.40291,4466.1,4465.4,0.6529]
[1759931415809,0.4029,4466.2,4465.9,0.23]
[1759931416511,0.4029,4466.2,4466.0,0.26218104]
[1759931417013,0.4029,4466.2,4466.0,0.91508104]
[1759931417408,0.4029,4466.2,4466.0,0.26218104]
[1759931417921,3.2078,4466.3,4466.0,0.91508104]
[1759931418208,0.4029,4466.2,4466.0,0.91508104]
[1759931418408,0.4029,4466.2,4466.0,0.26218104]
[1759931418610,0.4029,4466.2,4465.9,0.23]
[1759931418917,0.40295,4465.7,4465.6,0.6529]
[1759931419115,3.61075,4465.7,4465.6,0.6529]
[1759931419621,3.61075,4465.7,4465.6,0.00220468]
[1759931420615,0.403,4465.1,4465.0,0.2605]
[1759931420918,3.8408,4465.1,4465.0,0.2605]
[1759931421114,8.8408,4465.1,4465.0,0.2605]
[1759931421512,3.2078,4465.1,4465.0,0.91511625]
[1759931421709,3.2078,4465.1,4465.0,5.24174855]
[1759931421920,3.2078,4465.1,4465.0,0.91511625]
[1759931422311,3.2078,4465.1,4465.0,0.26221625]
[1759931422506,8.2078,4465.1,4465.0,0.26221625]
[1759931422711,8.4378,4465.1,4465.0,0.26221625]
[1759931423223,8.2078,4465.1,4465.0,0.91511625]
[1759931423515,8.2078,4465.1,4464.5,0.2605]
[1759931423516,0.40305,4464.6,4464.5,0.2605]
[1759931423712,3.61085,4464.6,4464.5,0.2605]
[1759931423909,0.40309,4464.1,4464.0,0.2605]
[1759931424114,3.61089,4464.1,4464.0,0.2605]
[1759931424509,3.61378168,4464.1,4464.0,0.26334549]
[1759931424712,0.40314,4463.6,4463.5,0.2605]
[1759931424917,0.40314,4463.6,4463.5,0.9134]
[1759931424918,3.2078,4463.6,4463.5,0.9134]
[1759931425215,3.21069168,4464.1,4464.0,0.9134]
[1759931425414,3.21069168,4464.1,4464.0,0.2605]
[1759931425612,3.21069168,4464.1,4464.0,0.26300353]
[1759931425817,3.21069168,4464.1,4464.0,0.00250353]
[1759931426015,3.21069168,4464.1,4464.0,0.2605]
[1759931426210,3.61378168,4464.1,4464.0,0.9134]
[1759931426512,3.21069168,4464.1,4464.0,5.9134]
[1759931426723,3.21069168,4464.1,4464.0,0.9134]
[1759931426915,3.21069168,4464.1,4464.0,0.91586852]
[1759931427318,3.21069168,4464.1,4464.0,0.26296852]
[1759931429023,15.68992876,4464.1,4464.0,8.52e-06]
[1759931429714,3.44069168,4464.1,4464.0,8.52e-06]
[1759931430310,8.44069168,4464.1,4464.0,8.52e-06]
[1759931430716,11.33931903,4464.1,4464.0,8.52e-06]
[1759931430910,15.66595133,4464.1,4464.0,8.52e-06]
[1759931431515,15.43595133,4464.1,4464.0,8.52e-06]
[1759931431721,15.43595133,4464.1,4463.0,0.2605]
[1759931431722,0.40318,4463.1,4463.0,0.2605]
[1759931431915,3.84098,4463.1,4463.0,0.2605]
[1759931432214,3.84098,4463.1,4461.2,6.93582407]
[1759931432215,0.40333,4461.5,4461.1,0.177]
[1759931432415,3.2078,4461.7,4461.3,0.40334]
[1759931432623,0.40327,4462.2,4461.5,0.40332]
[1759931432919,3.4378,4462.3,4461.7,0.4033]
[1759931433115,0.40329,4461.9,4461.7,0.4033]
[1759931433308,0.40331,4461.7,4461.5,0.00264669]
[1759931433914,0.40331,4461.7,4461.5,0.26314669]
[1759931434218,0.63331,4461.7,4461.6,0.6529]
[1759931434618,9.9599423,4461.7,4461.5,0.26314669]
[1759931434814,0.40341,4460.6,4460.5,0.2605]
[1759931435016,3.2078,4460.6,4460.5,0.2605]
[1759931435320,3.84116,4461.2,4461.0,0.2605]
[1759931435509,3.2078,4461.2,4461.0,0.2605]
[1759931435712,0.00187687,4461.2,4461.0,0.66592256]
[1759931436716,0.00187687,4461.2,4461.1,0.6529]
[1759931439721,3.20967687,4461.2,4461.1,0.6529]
[1759931441123,0.40336,4461.1,4461.0,0.26256256]
[1759931441519,0.40336,4461.1,4461.0,0.00206256]
[1759931441924,0.40336,4461.1,4461.0,0.94176256]
[1759931442625,0.40336,4461.1,4461.0,0.28296256]
[1759931442820,0.40341,4460.6,4460.5,0.2605]
[1759931443019,0.40343,4460.3,4460.2,0.6588]
[1759931443616,3.2078,4460.6,4460.0,0.2605]
[1759931443823,3.2078,4460.6,4460.5,0.9397]
[1759931445028,0.40522687,4461.2,4461.1,0.6588]
[1759931446729,0.00187687,4461.2,4461.1,1.06216]
[1759931447427,0.00187687,4461.2,4461.1,0.6588]
[1759931452332,0.00187687,4461.2,4461.1,5.8888]
[1759931452525,0.00187687,4461.2,4461.1,0.8888]
[1759931452731,0.00187687,4461.2,4461.1,0.6588]
[1759931455335,12.0931,4464.1,4461.1,0.6588]
[1759931455336,3.2078,4462.0,4461.8,0.6588]
[1759931455631,3.61108,4462.0,4461.8,0.6588]
[1759931456234,3.20953308,4462.0,4461.9,0.6588]
[1759931457937,3.20953308,4462.0,4461.9,0.8888]
[1759931458137,3.20953308,4462.0,4461.9,0.6588]
[1759931458432,3.20953308,4462.0,4461.9,0.8888]
[1759931459031,3.2078,4462.5,4462.2,0.40325]
[1759931459225,3.2078,4462.5,4462.2,0.40326]
[1759931459428,0.40325,4462.4,4462.1,0.6588]
[1759931459633,3.2078,4463.0,4462.5,0.2809]
[1759931459849,3.2078,4463.0,4462.7,1.06202]
[1759931460075,3.20972038,4463.0,4462.8,0.6588]
[1759931460269,3.20972038,4463.0,4462.8,0.40321]
[1759931460555,3.20972038,4463.0,4462.9,0.6588]
[1759931460734,0.00192038,4463.0,4462.9,5.6588]
[1759931461030,0.00192038,4463.0,4462.9,10.2154323]
[1759931461630,0.64822038,4463.0,4462.4,3.2078]
[1759931461834,0.00192038,4463.0,4462.7,0.40322]
[1759931462030,0.00192038,4463.0,4462.5,0.91413]
[1759931462237,0.00192038,4463.0,4462.6,0.6588]
[1759931462424,0.00192038,4463.0,4462.9,3.8666]
[1759931463029,0.00192038,4463.0,4462.9,4.0966]
[1759931463239,0.00192038,4463.0,4462.9,0.8888]
[1759931463434,0.00192038,4463.0,4462.9,4.0966]
[1759931463734,0.00192038,4463.0,4462.9,3.8666]
[1759931463932,0.00192038,4463.0,4462.9,4.0966]
[1759931465432,0.00192038,4463.0,4462.9,9.0966]
[1759931465633,0.14896,4464.0,4463.9,0.6588]
[1759931465938,0.14896,4464.0,4463.9,0.8888]
[1759931466134,0.14896,4464.0,4463.9,0.6588]
[1759931466339,0.14896,4464.0,4463.9,0.8888]
[1759931466836,0.15172151,4464.0,4463.9,0.89112845]
[1759931467541,3.2078,4465.1,4464.3,1.00767]
[1759931467736,3.2078,4465.1,4464.7,0.40304]
[1759931468037,0.6463,4465.0,4464.8,0.23]
[1759931468234,0.6463,4465.0,4464.0,0.2809]
[1759931468235,0.6463,4464.9,4464.7,0.23]
[1759931468541,0.6841,4464.7,4463.9,0.00232845]
[1759931468840,0.6841,4464.1,4463.9,0.00232845]
[1759931469038,3.2078,4464.2,4463.9,0.00232845]
[1759931469233,3.2078,4464.2,4464.1,0.6706]
[1759931469537,0.00198842,4464.9,4463.9,3.21012845]
[1759931469538,0.6841,4464.8,4463.9,3.21012845]
[1759931469838,4.21735842,4464.9,4463.9,3.21012845]
[1759931470028,0.6841,4464.1,4463.9,0.23232845]
[1759931470429,0.6841,4464.6,4464.0,1.0737]
[1759931470638,0.6841,4464.6,4464.0,0.6706]
[1759931470829,0.40308,4464.2,4464.0,0.6706]
[1759931471033,0.6841,4464.1,4463.9,0.23232845]
[1759931471234,0.40308,4464.2,4463.9,0.23232845]
[1759931471440,0.40305,4464.6,4463.9,0.63543845]
[1759931471647,4.29494,4464.7,4464.1,0.40308]
[1759931471837,3.61089,4464.2,4463.9,0.00232845]
[1759931472140,0.6841,4464.1,4463.9,0.00232845]
[1759931472334,3.2078,4464.2,4463.9,0.00232845]
[1759931472529,0.6841,4464.1,4463.9,0.40543845]
[1759931472732,0.6841,4464.6,4464.3,0.40307]
[1759931472933,0.6841,4464.6,4464.1,0.40308]
[1759931473139,0.6841,4464.6,4464.2,1.07368]
[1759931473338,0.6841,4464.6,4464.3,0.6706]
[1759931473640,1.08714,4464.7,4464.2,0.40308]
[1759931473843,0.6841,4464.6,4464.3,0.6706]
[1759931474141,0.6841,4464.7,4464.1,0.6706]
[1759931474341,0.40304,4464.7,4464.3,0.6706]
[1759931474634,1.08714,4464.7,4464.2,0.40308]
[1759931474839,0.6841,4464.7,4464.3,1.07367]
[1759931475039,3.8919,4464.8,4464.3,0.40307]
[1759931475242,0.6841,4464.4,4464.1,0.6706]
[1759931475442,3.2078,4464.8,4463.9,0.00232845]
[1759931475637,0.40304,4464.7,4464.4,0.6706]
[1759931475836,0.6841,4464.3,4464.1,0.6706]
[1759931476037,0.40308,4464.2,4463.9,0.67292845]
[1759931476234,1.0872,4464.0,4463.9,0.00232845]
[1759931476446,1.3372,4464.0,4463.9,0.00232845]
[1759931477747,0.9341,4464.0,4463.9,0.00232845]
[1759931477948,3.8919,4464.3,4464.0,0.4031]
[1759931478249,3.2078,4464.3,4464.2,0.6706]
[1759931478546,3.8919,4464.3,4464.2,0.6706]
[1759931478937,3.8919,4464.3,4464.0,1.0737]
[1759931479137,0.6841,4464.1,4464.0,0.6706]
[1759931479342,1.0872,4464.0,4463.9,0.00232845]
[1759931479744,6.3372,4464.0,4463.9,0.00232845]
[1759931479947,0.2536,4462.5,4462.0,0.40327]
[1759931480141,3.8919,4462.2,4462.0,1.07387]
[1759931480341,0.6841,4462.0,4461.7,0.6706]
[1759931480647,0.40332,4461.6,4461.2,0.6706]
[1759931480839,0.6841,4461.4,4461.2,0.0017871]
[1759931481039,1.08744,4461.3,4461.2,0.0017871]
[1759931482446,0.6841,4461.3,4461.2,0.0017871]
[1759931482651,3.21016763,4461.6,4461.3,0.6706]
[1759931482946,3.21016763,4461.6,4461.5,0.6706]
[1759931483950,0.40334,4461.3,4461.2,0.0017871]
[1759931484254,1.08744,4461.3,4461.2,0.0017871]
[1759931484441,0.6841,4461.3,4461.2,0.0017871]
[1759931484840,0.40334,4461.4,4461.2,0.0017871]
[1759931485039,0.40334,4461.4,4461.3,0.6706]
[1759931485450,0.40333,4461.5,4461.3,0.6706]
[1759931485744,0.6841,4461.3,4461.2,0.0017871]
[1759931486740,3.21016763,4461.6,4461.2,0.0017871]
[1759931486941,3.61348763,4461.6,4461.3,0.6706]
[1759931487150,0.40333,4461.5,4461.3,0.6706]
[1759931487356,1.08744,4461.3,4461.2,0.0017871]
[1759931489349,3.21016763,4461.6,4461.5,0.2698]
[1759931489555,3.21016763,4461.6,4461.5,0.9404]
[1759931489746,3.21016763,4461.6,4461.5,0.6706]
[1759931490246,3.2078,4462.6,4461.5,5.9404]
[1759931490550,3.2078,4462.6,4462.5,0.6706]
[1759931490849,3.2078,4462.6,4462.0,0.67307]
[1759931490850,0.6841,4462.5,4462.2,0.23]
[1759931491051,1.08736,4462.3,4461.5,0.2698]
[1759931491248,0.40327,4462.1,4461.6,0.9006]
[1759931491444,0.00216607,4462.3,4461.7,0.6706]
[1759931491755,3.2078,4464.2,4463.3,0.414]
[1759931491945,3.2078,4464.2,4463.6,4.976278]
[1759931492145,0.6841,4463.9,4463.6,4.976278]
[1759931492356,0.6841,4463.9,4463.3,0.40316]
[1759931492547,0.6841,4463.9,4463.2,0.23]
[1759931492748,0.6841,4463.8,4463.4,0.40315]
[1759931492947,0.6841,4463.8,4463.5,0.40314]
[1759931493147,0.6841,4463.8,4463.6,0.40313]
[1759931493452,0.00290734,4463.9,4463.8,0.81712]
[1759931493649,0.00290734,4463.9,4463.8,1.04712]
[1759931494251,0.68700734,4463.9,4463.8,0.23]
[1759931496757,0.00290734,4463.9,4463.8,0.23]
[1759931497056,1.00734,4465.9,4463.8,0.23]
[1759931497057,3.2078,4465.4,4463.8,5.23]
[1759931497255,0.6841,4466.1,4465.3,8.184078]
[1759931497554,0.2658,4465.5,4465.4,0.23]
[1759931497754,0.9499,4465.5,4465.4,0.23]
[1759931497952,0.95164482,4465.5,4465.4,0.23265797]
[1759931498155,0.00174482,4465.5,4465.4,5.62293597]
[1759931498549,0.00174482,4465.5,4465.4,10.62293597]
[1759931500360,0.6867,4466.8,4465.6,0.4079]
[1759931500661,3.2078,4467.4,4465.5,1.14051]
[1759931500662,3.2078,4467.4,4467.0,0.40282]
[1759931500964,3.8945,4467.4,4466.6,0.23]
[1759931501161,3.2078,4467.4,4467.0,0.40282]
[1759931501362,3.21010627,4467.4,4466.8,0.40284]
[1759931501558,3.21010627,4467.4,4466.9,0.40283]
[1759931501753,3.21010627,4467.4,4467.2,0.4028]
[1759931501964,0.00230627,4467.4,4467.3,0.6347]
[1759931502462,0.00230627,4467.4,4467.3,0.23]
[1759931502963,0.00230627,4467.4,4467.3,1.0375]
[1759931503961,0.00230627,4467.4,4467.3,6.0375]
[1759931505062,0.00230627,4467.4,4467.3,5.6347]
[1759931505768,0.00230627,4467.4,4467.3,0.6347]
[1759931506764,0.022,4467.9,4467.8,0.80516]
[1759931506958,3.2078,4469.4,4468.8,5.378948]
[1759931507160,3.2078,4469.4,4468.8,5.608948]
[1759931507456,0.2789,4469.5,4468.9,0.40266]
[1759931507659,3.2078,4469.4,4468.8,0.23]
[1759931507863,3.61042,4469.4,4468.8,0.23160694]
[1759931508169,0.6834,4469.3,4468.8,0.23160694]
[1759931508369,0.6834,4469.3,4468.8,0.63426694]
[1759931508568,0.40263,4469.3,4468.8,0.00160694]
[1759931508869,0.40263,4469.3,4468.8,0.23160694]
[1759931509168,0.6834,4469.2,4468.8,0.23160694]
[1759931509565,3.8912,4468.9,4468.8,0.00160694]
[1759931510072,8.8912,4468.9,4468.8,0.00160694]
[1759931512268,0.6834,4468.9,4468.8,0.00160694]
[1759931512665,3.8912,4468.9,4468.8,0.00160694]
[1759931512968,9.1212,4468.9,4468.8,0.00160694]
[1759931514268,0.2789,4468.5,4468.0,0.23]
[1759931514469,0.6834,4468.1,4468.0,0.23]
[1759931514666,0.6834,4467.9,4467.4,3.2078]
[1759931514874,0.2789,4467.5,4467.4,3.2078]
[1759931515067,0.9623,4468.0,4467.7,0.40276]
[1759931515270,0.6834,4467.9,4467.8,0.40275]
[1759931515469,0.2789,4468.5,4467.7,1.23978084]
[1759931515672,0.2789,4469.0,4467.7,1.23978084]
[1759931515673,0.2789,4469.0,4468.1,5.358278]
[1759931515872,0.40266,4468.9,4468.2,0.23]
[1759931516070,0.6834,4468.7,4468.5,0.40269]
[1759931516386,0.40267,4468.8,4468.5,0.40269]
[1759931516578,0.6834,4468.7,4468.6,0.40268]
[1759931516764,0.6834,4468.7,4468.2,0.23]
[1759931516964,0.6816,4468.5,4468.2,0.23]
[1759931517174,0.6834,4468.3,4468.2,0.23]
[1759931518077,0.2789,4468.0,4467.9,3.2078]
[1759931518277,0.2789,4468.0,4467.7,0.00287084]
[1759931518278,0.68164,4468.0,4467.7,0.23287084]
[1759931518478,0.6834,4467.8,4467.7,0.00287084]
[1759931518974,5.6834,4467.8,4467.7,0.00287084]
[1759931519674,5.9134,4467.8,4467.7,0.00287084]
[1759931519868,0.6834,4467.8,4467.7,0.00287084]
[1759931520070,0.6834,4466.9,4465.9,3.61072]
[1759931520377,0.40285,4466.8,4466.0,0.23]
[1759931520576,0.6834,4466.6,4466.2,0.40289]
[1759931520772,0.40286,4466.7,4466.2,0.40289]
[1759931520978,0.4029,4466.3,4466.0,0.23]
[1759931521278,0.6834,4466.1,4466.0,0.00288151]
[1759931522075,0.9134,4466.1,4466.0,0.00288151]
[1759931522280,0.6834,4466.1,4466.0,0.00288151]
[1759931522778,1.08631,4466.1,4466.0,0.00288151]
[1759931523890,1.08631,4466.1,4464.0,0.1321]
[1759931523891,0.40303,4464.8,4464.4,3.2078]
[1759931524180,0.6834,4464.7,4464.4,3.2078]
[1759931524479,0.9623,4464.5,4464.4,3.2078]
[1759931524777,0.9623,4464.5,4464.4,3.21037683]
[1759931524981,0.9623,4464.5,4464.4,0.00257683]
[1759931525184,0.2789,4465.0,4464.4,0.40563683]
[1759931525383,0.2789,4465.0,4464.5,3.2078]
[1759931525682,0.9623,4464.5,4464.4,0.00257683]
[1759931526571,0.6834,4463.8,4463.7,3.2078]
[1759931526982,0.6834,4463.8,4463.3,0.40316]
[1759931527278,0.40313,4463.7,4463.2,3.61097]
[1759931527471,0.6834,4463.4,4463.2,3.2078]
[1759931527673,0.40312,4463.8,4463.2,3.21052576]
[1759931527875,1.08652,4463.8,4463.2,3.61369576]
[1759931528282,0.6834,4463.8,4463.7,3.2078]
[1759931528482,1.09152,4464.9,4463.8,0.3675]
[1759931528780,0.6885,4464.9,4464.6,0.40304]
[1759931528976,0.6885,4464.9,4464.5,0.23]
[1759931529176,0.6885,4464.9,4464.5,0.63305]
[1759931529372,0.6885,4464.9,4464.5,0.23]
[1759931529583,0.6885,4464.8,4464.5,0.23]
[1759931529773,0.40302,4464.9,4464.5,0.23]
[1759931529973,0.6885,4463.9,4463.8,3.2078]
[1759931530381,0.6885,4465.0,4463.9,0.3675]
[1759931530582,0.6885,4465.0,4463.7,4.55699363]
[1759931530583,1.09151,4465.0,4464.4,7.53479363]
[1759931530883,0.403,4465.1,4464.5,0.40305]
[1759931531085,3.8963,4465.2,4464.4,8.16785363]
[1759931531676,3.8963,4465.2,4464.5,0.40305]
[1759931531677,0.67682,4465.0,4464.5,0.40305]
[1759931531877,0.6885,4464.8,4464.4,7.76479363]
[1759931532089,0.2738,4464.5,4464.4,0.23]
[1759931532289,0.9623,4464.0,4463.9,3.2078]
[1759931532490,0.9623,4464.0,4463.9,3.4378]
[1759931532684,0.6885,4464.0,4463.9,3.4378]
[1759931533188,0.6885,4464.4,4464.0,0.4031]
[1759931533389,0.2738,4464.5,4463.9,7.76479363]
[1759931533589,0.6885,4464.7,4464.4,7.93785363]
[1759931533779,0.2738,4465.0,4464.4,8.53535363]
[1759931533985,0.6885,4464.8,4464.4,3.2078]
[1759931534185,1.09153,4464.8,4464.5,0.23]
[1759931534383,1.09153,4464.8,4463.9,4.69449363]
[1759931534384,0.9623,4464.0,4463.9,3.2078]
[1759931534583,0.9623,4465.0,4464.4,0.40306]
[1759931534881,0.40304,4464.7,4464.5,3.4378]
[1759931535083,0.6885,4464.6,4464.5,3.4378]
[1759931535488,0.6885,4464.6,4464.5,3.2078]
[1759931535679,0.67685,4464.5,4464.0,3.2078]
[1759931535882,0.2738,4464.5,4464.0,3.2078]
[1759931536485,0.6885,4464.1,4464.0,3.2078]
[1759931536683,1.28145,4464.5,4463.5,0.23]
[1759931536684,0.6885,4463.9,4463.5,0.23]
[1759931536882,0.2738,4464.0,4463.5,0.63314]
[1759931536883,0.6885,4463.7,4463.5,0.63314]
[1759931537079,0.40312,4463.8,4463.5,0.23]
[1759931537287,0.9623,4463.5,4463.4,3.2078]
[1759931539487,0.9623,4463.5,4463.2,0.00272576]
[1759931539784,0.6885,4463.3,4463.2,0.00272576]
[1759931540382,0.6885,4463.3,4463.2,4.32971939]
[1759931540584,0.6885,4463.9,4463.8,0.40311]
[1759931540891,3.2078,4464.7,4463.2,4.32971939]
[1759931540892,0.6885,4464.4,4463.7,7.76479363]
[1759931541188,0.6885,4464.4,4464.3,4.32699363]
[1759931541395,0.6885,4464.4,4464.3,0.23]
[1759931541588,0.6885,4464.9,4464.3,0.23]
[1759931541787,0.40304,4464.7,4463.9,4.32699363]
[1759931541988,0.6885,4464.6,4464.0,0.23]
[1759931542285,0.6885,4464.3,4464.1,0.23]
[1759931542491,1.28135,4465.0,4464.1,0.23]
[1759931542492,0.40302,4464.9,4464.4,0.40306]
[1759931542691,0.6885,4464.6,4464.5,0.23]
[1759931545089,0.6885,4464.6,4464.4,0.40306]
[1759931545090,3.8963,4464.6,4464.0,0.40309]
[1759931545292,0.2738,4464.5,4463.7,3.4378]
[1759931545499,0.6885,4464.4,4464.2,0.40308]
[1759931545693,0.6885,4464.4,4464.2,0.23]
[1759931545889,0.6885,4464.3,4464.2,0.23]
[1759931546493,0.6885,4464.4,4464.3,0.40307]
[1759931546689,1.09156,4464.4,4464.2,0.23]
[1759931547195,0.40306,4464.4,4464.2,0.23]
[1759931547492,0.6885,4464.3,4464.2,0.23]
[1759931549196,0.2738,4465.0,4464.2,8.4378]
[1759931549400,0.2738,4465.0,4464.8,0.40302]
[1759931549597,0.2738,4465.0,4464.8,0.23]
[1759931549891,3.8963,4464.9,4464.8,0.23]
[1759931550098,0.6885,4464.9,4464.8,0.23]
[1759931553296,0.40307,4464.4,4464.1,0.40309]
[1759931553797,0.6885,4464.1,4464.0,0.23]
[1759931554198,0.6885,4464.5,4464.2,0.40308]
[1759931554403,0.6885,4464.4,4464.3,0.40307]
[1759931554998,1.09157,4464.4,4464.2,3.61087]
[1759931555292,0.40305,4464.6,4464.3,0.40307]
[1759931555498,0.6885,4464.5,4464.4,0.23]
[1759931555905,0.9623,4464.5,4464.4,0.23]
[1759931556601,0.40305,4464.6,4464.4,0.63306]
[1759931557000,0.6885,4464.5,4464.4,0.23]
[1759931557202,0.9623,4464.5,4464.4,0.23]
[1759931557801,0.9623,4465.0,4464.4,6.60515]
[1759931557999,0.6885,4465.4,4465.2,0.40299]
[1759931558204,0.6885,4465.6,4465.4,0.40297]
[1759931558401,0.40293,4465.9,4465.5,0.77046]
[1759931558702,3.8553,4466.2,4465.3,0.23]
[1759931558703,0.6475,4465.7,4465.6,0.40295]
[1759931558898,0.6475,4465.7,4465.6,0.63295]
[1759931559696,3.2078,4466.2,4465.7,0.3446]
[1759931559900,0.00281911,4466.3,4466.2,0.7475]
[1759931560102,0.00281911,4466.3,4466.2,4.1853]
[1759931560303,0.00281911,4466.3,4466.2,9.1853]
[1759931562400,0.00281911,4466.3,4466.2,4.1853]
[1759931562805,0.23,4468.2,4466.2,4.1853]
[1759931562806,3.2078,4467.7,4466.6,0.3387]
[1759931563008,3.2078,4467.7,4467.1,4.32699363]
[1759931563009,3.8676,4467.7,4467.1,4.32699363]
[1759931563200,0.6598,4467.6,4467.2,0.6328]
[1759931563402,0.6598,4467.8,4467.2,0.23]
[1759931563903,0.6598,4467.7,4467.2,0.23161267]
[1759931564106,0.0018669,4467.8,4467.2,0.63442267]
[1759931564107,0.6598,4467.5,4467.2,0.63442267]
[1759931564603,1.0626,4467.4,4467.2,0.23161267]
[1759931564813,0.6598,4467.3,4467.2,0.23161267]
[1759931566303,0.2636,4467.5,4467.2,0.23161267]
[1759931566510,0.0018669,4467.8,4467.2,0.23161267]
[1759931566804,0.6598,4467.7,4467.5,4.32699363]
[1759931567003,0.6598,4467.7,4467.6,0.23]
[1759931568513,0.6598,4467.4,4467.2,0.40442267]